bitfinex/quotes_BTCUSD_20251201
["timestamp","ask_amount","ask_price","bid_price","bid_amount"]
[1764557679706,0.00051844,86770.0,86769.0,0.00732]
[1764557680370,0.00051844,86770.0,86769.0,0.02092253]
[1764557680590,0.00751844,86770.0,86769.0,0.02192253]
[1764557680800,0.00051844,86770.0,86769.0,0.02092253]
[1764557681237,0.00551844,86770.0,86769.0,0.02192253]
[1764557681460,0.00051844,86770.0,86769.0,0.00732]
[1764557681701,0.00551844,86770.0,86769.0,0.00832]
[1764557682217,0.00551844,86770.0,86769.0,0.02305548]
[1764557682824,0.00051844,86770.0,86769.0,0.02305548]
[1764557683021,0.01152432,86773.0,86770.0,0.01152472]
[1764557683230,0.01152405,86775.0,86769.0,0.02205548]
[1764557683424,0.01152405,86775.0,86769.0,0.03458033]
[1764557683425,0.004,86770.0,86769.0,0.03458033]
[1764557684125,0.004,86770.0,86769.0,0.01984485]
[1764557684768,0.0302122,86809.0,86781.0,0.09734812]
[1764557684980,0.0004,86810.0,86809.0,0.23039085]
[1764557685178,0.04763,86836.0,86825.0,0.323]
[1764557685379,0.04763,86836.0,86821.0,0.0055]
[1764557685380,0.06334,86826.0,86821.0,0.0055]
[1764557685621,0.06334,86822.0,86821.0,0.0055]
[1764557685758,0.15942,86822.0,86821.0,0.0055]
[1764557686164,0.00079496,86830.0,86821.0,0.0055]
[1764557686390,0.00079496,86830.0,86829.0,0.323]
[1764557688319,0.00079496,86830.0,86829.0,0.42034812]
[1764557688922,0.00079496,86830.0,86829.0,0.42770812]
[1764557689345,0.00079496,86830.0,86822.0,0.323]
[1764557689638,0.01151715,86827.0,86823.0,0.10470812]
[1764557689861,0.01151728,86826.0,86823.0,0.09734812]
[1764557690044,0.06427,86824.0,86823.0,0.10470812]
[1764557690256,0.24186008,86828.0,86823.0,0.1162258]
[1764557690459,0.01151702,86828.0,86823.0,0.1162258]
[1764557690659,0.01151688,86829.0,86825.0,0.01151742]
[1764557690866,0.00079496,86830.0,86829.0,0.23033779]
[1764557691080,0.00079496,86830.0,86827.0,0.24186024]
[1764557691294,0.00079496,86830.0,86829.0,0.23033779]
[1764557692960,0.00179496,86830.0,86829.0,0.23033779]
[1764557693135,0.00079496,86830.0,86829.0,0.23033779]
[1764557693520,0.0004,86840.0,86829.0,0.23033779]
[1764557693521,0.0004,86840.0,86839.0,0.23031126]
[1764557693718,0.00051843,86840.0,86839.0,0.3369027]
[1764557694574,0.00051843,86840.0,86839.0,0.6599027]
[1764557694752,0.00251843,86840.0,86839.0,0.6525427]
[1764557695101,0.00251843,86840.0,86839.0,0.42959144]
[1764557695797,0.00251843,86840.0,86839.0,0.42223144]
[1764557696052,0.00251843,86840.0,86839.0,0.42959144]
[1764557696195,0.00051843,86840.0,86839.0,0.42223144]
[1764557696393,0.00051843,86840.0,86839.0,0.42959144]
[1764557696596,0.00051843,86840.0,86839.0,0.43059144]
[1764557696793,0.00051843,86840.0,86839.0,0.42959144]
[1764557697616,0.00051843,86840.0,86839.0,0.42223144]
[1764557697823,0.00051843,86840.0,86839.0,0.42959144]
[1764557698603,0.00051843,86840.0,86839.0,0.42223144]
[1764557698820,0.00051843,86840.0,86839.0,0.42959144]
[1764557699146,0.00051843,86840.0,86839.0,0.42223144]
[1764557699347,0.00051843,86840.0,86839.0,0.42955144]
[1764557699787,0.00051843,86840.0,86839.0,0.6598627]
[1764557700590,0.00051843,86840.0,86839.0,0.42223144]
[1764557700797,0.00051843,86840.0,86839.0,0.42955144]
[1764557701118,0.00051843,86840.0,86839.0,0.6598627]
[1764557701746,0.23082704,86840.0,86839.0,0.09923144]
[1764557702096,0.30661317,86840.0,86838.0,0.00732]
[1764557702314,0.01151556,86839.0,86838.0,0.00732]
[1764557702488,0.01151556,86839.0,86825.0,0.23034747]
[1764557702489,0.01151649,86832.0,86828.0,0.09923144]
[1764557702644,0.01151662,86831.0,86829.0,0.00732]
[1764557702864,0.01151662,86831.0,86830.0,0.09734812]
[1764557703068,0.01151662,86831.0,86830.0,0.10466812]
[1764557703293,0.06002463,86846.0,86837.0,0.01151582]
[1764557703455,0.01151516,86842.0,86835.0,0.01151609]
[1764557703665,0.01151529,86841.0,86830.0,1.00891745]
[1764557703860,0.01151622,86834.0,86831.0,0.00732]
[1764557704059,0.24184103,86834.0,86831.0,0.00732]
[1764557704465,0.01151635,86833.0,86831.0,0.00732]
[1764557704774,0.01151582,86837.0,86831.0,0.00732]
[1764557704975,0.23033213,86832.0,86830.0,0.09734812]
[1764557705175,0.23032983,86832.0,86831.0,0.00732]
[1764557705397,0.01151635,86833.0,86831.0,0.00732]
[1764557705613,0.01151622,86834.0,86831.0,0.00732]
[1764557705843,0.24184536,86833.0,86830.0,0.09734812]
[1764557706046,0.01151635,86833.0,86830.0,0.10466812]
[1764557706191,0.24184447,86833.0,86830.0,0.10466812]
[1764557706568,0.01151635,86833.0,86830.0,0.10466812]
[1764557706946,0.001,86834.0,86831.0,0.2418491]
[1764557707146,0.001,86834.0,86833.0,0.23032717]
[1764557707484,0.01151463,86846.0,86839.0,0.23031126]
[1764557707528,0.23027456,86853.0,86839.0,0.23031126]
[1764557707733,0.01191277,86860.0,86839.0,0.56470328]
[1764557707939,0.01151344,86855.0,86839.0,0.56470328]
[1764557708140,0.01151317,86857.0,86839.0,0.56470328]
[1764557708340,0.01151383,86852.0,86839.0,0.56470328]
[1764557708548,0.01151344,86855.0,86839.0,0.56470328]
[1764557709328,0.0115133,86856.0,86839.0,0.56470328]
[1764557709534,0.01151304,86858.0,86839.0,0.55331126]
[1764557709766,0.0004,86860.0,86839.0,0.56470328]
[1764557710044,0.01151291,86859.0,86839.0,0.56470328]
[1764557710249,0.0004,86860.0,86839.0,0.56470328]
[1764557710745,0.0004,86860.0,86839.0,0.59984238]
[1764557711067,0.0004,86860.0,86839.0,0.60184238]
[1764557711264,0.01151304,86858.0,86839.0,0.60184238]
[1764557712262,0.01151317,86857.0,86839.0,0.60184238]
[1764557712456,0.02308601,86858.0,86839.0,0.60184238]
[1764557712793,0.01151317,86857.0,86839.0,0.57402328]
[1764557713540,0.02308601,86858.0,86839.0,0.57402328]
[1764557713946,0.02308601,86858.0,86839.0,0.57202328]
[1764557714231,0.02308601,86858.0,86839.0,3.34172326]
[1764557714429,0.0004,86860.0,86839.0,2.20999224]
[1764557714587,0.0004,86860.0,86839.0,0.67068537]
[1764557714786,0.0004,86860.0,86842.0,5.62721831]
[1764557715024,0.0004,86860.0,86859.0,0.56465025]
[1764557715237,0.0004,86860.0,86859.0,0.67120169]
[1764557715238,0.00093705,86860.0,86859.0,0.67120169]
[1764557715663,0.00093705,86860.0,86859.0,0.78110169]
[1764557716011,0.00093705,86860.0,86859.0,0.81624079]
[1764557716530,0.00093705,86860.0,86859.0,0.87876378]
[1764557716745,0.00093705,86860.0,86859.0,0.84362468]
[1764557716968,0.00093705,86860.0,86859.0,0.87976378]
[1764557717450,0.00093705,86860.0,86859.0,5.77386378]
[1764557717701,0.00093705,86860.0,86859.0,5.80339465]
[1764557718048,0.00093705,86860.0,86859.0,5.79200263]
[1764557718285,0.00093705,86860.0,86859.0,5.80339465]
[1764557718490,0.00093705,86860.0,86859.0,5.76247176]
[1764557718795,0.00093705,86860.0,86859.0,5.64009176]
[1764557718997,0.00093705,86860.0,86859.0,6.13517178]
[1764557719205,0.00093705,86860.0,86859.0,6.18700263]
[1764557719413,0.00093705,86860.0,86859.0,1.18700263]
[1764557719567,0.00093705,86860.0,86859.0,5.50553678]
[1764557719780,0.00093705,86860.0,86859.0,5.32779776]
[1764557720014,0.00093705,86860.0,86859.0,3.90953068]
[1764557720217,0.00093705,86860.0,86859.0,3.75403168]
[1764557720450,0.00093705,86860.0,86859.0,1.13872468]
[1764557720824,0.00093705,86860.0,86859.0,2.35414668]
[1764557721031,0.00093705,86860.0,86859.0,1.78833768]
[1764557721231,0.00093705,86860.0,86859.0,2.30974568]
[1764557721431,0.00093705,86860.0,86859.0,2.15187668]
[1764557721715,0.00093705,86860.0,86859.0,2.82817768]
[1764557722033,0.00093705,86860.0,86859.0,3.15657468]
[1764557722243,0.00093705,86860.0,86859.0,3.41657468]
[1764557722463,0.00093705,86860.0,86859.0,3.67554868]
[1764557722692,0.00093705,86860.0,86859.0,1.13372468]
[1764557722852,0.00093705,86860.0,86859.0,3.93724668]
[1764557723056,0.00093705,86860.0,86859.0,3.39786568]
[1764557723255,0.00093705,86860.0,86859.0,3.58835366]
[1764557723424,0.00093705,86860.0,86859.0,6.16525555]
[1764557723631,0.00093705,86860.0,86859.0,6.20039465]
[1764557723870,0.00093705,86860.0,86859.0,1.20039465]
[1764557724072,0.01150642,86908.0,86889.0,0.55317873]
[1764557724386,0.00051837,86890.0,86889.0,0.65973017]
[1764557725349,0.00051837,86890.0,86889.0,0.42955144]
[1764557726376,0.00151837,86890.0,86889.0,0.42955144]
[1764557726814,0.00051837,86890.0,86889.0,0.42955144]
[1764557727154,0.00351837,86890.0,86889.0,0.42955144]
[1764557727679,0.06605837,86890.0,86889.0,0.44101384]
[1764557728024,0.00051837,86890.0,86889.0,0.44101384]
[1764557728243,0.00251837,86890.0,86889.0,0.44101384]
[1764557728656,0.00251837,86890.0,86889.0,0.43369384]
[1764557728841,0.06505837,86890.0,86889.0,0.11069384]
[1764557729195,0.00251837,86890.0,86889.0,0.11069384]
[1764557729600,0.00346572,86890.0,86889.0,0.11069384]
[1764557729797,0.06400572,86890.0,86889.0,0.10769384]
[1764557730102,0.06800572,86890.0,86889.0,0.10769384]
[1764557730308,0.06400572,86890.0,86889.0,0.10769384]
[1764557730596,0.06900572,86890.0,86889.0,0.10769384]
[1764557730807,0.07000572,86890.0,86889.0,0.10769384]
[1764557731189,0.2376418,86890.0,86889.0,0.10769384]
[1764557732323,0.00746572,86890.0,86889.0,0.10769384]
[1764557732518,0.00746572,86890.0,86889.0,0.20504196]
[1764557733276,0.00646572,86890.0,86889.0,0.20504196]
[1764557733471,0.00146572,86890.0,86889.0,0.20504196]
[1764557733695,0.00246572,86890.0,86889.0,0.10769384]
[1764557734078,0.00246572,86890.0,86889.0,0.33787257]
[1764557734280,0.00246572,86890.0,86889.0,0.10769384]
[1764557734517,0.00146572,86890.0,86889.0,0.10769384]
[1764557734923,0.00446572,86890.0,86889.0,0.10769384]
[1764557737268,0.00446572,86890.0,86889.0,0.13263632]
[1764557737422,0.00446572,86890.0,86889.0,0.11908586]
[1764557737837,0.00446572,86890.0,86889.0,0.10769384]
[1764557738431,0.00446572,86890.0,86889.0,0.33787257]
[1764557739249,0.00146572,86890.0,86889.0,0.33787257]
[1764557739492,0.00346572,86890.0,86889.0,0.33787257]
[1764557743368,0.00346572,86890.0,86889.0,0.66087257]
[1764557744787,0.00346572,86890.0,86889.0,0.67226459]
[1764557745436,0.00346572,86890.0,86889.0,0.66087257]
[1764557745944,0.00146572,86890.0,86889.0,0.66087257]
[1764557746178,0.00146572,86890.0,86889.0,0.66187257]
[1764557746381,0.00146572,86890.0,86889.0,0.43901384]
[1764557746616,0.00146572,86890.0,86889.0,0.43801384]
[1764557746773,0.00146572,86890.0,86889.0,0.43901384]
[1764557746961,0.00146572,86890.0,86889.0,0.11601384]
[1764557747164,0.00146572,86890.0,86889.0,0.34619257]
[1764557747361,0.00446572,86890.0,86889.0,0.34619257]
[1764557747748,0.00446572,86890.0,86889.0,0.33787257]
[1764557747950,0.00446572,86890.0,86889.0,0.34519257]
[1764557752499,0.00446572,86890.0,86889.0,0.10769384]
[1764557752918,0.00446572,86890.0,86889.0,0.11501384]
[1764557753116,0.00446572,86890.0,86889.0,0.10769384]
[1764557753667,0.00446572,86890.0,86889.0,0.34519257]
[1764557753851,0.00446572,86890.0,86889.0,0.33787257]
[1764557754713,0.00446572,86890.0,86889.0,0.23017873]
[1764557757774,0.00446572,86890.0,86888.0,0.00732]
[1764557757978,0.29250873,86889.0,86888.0,0.20504196]
[1764557758184,0.06233,86889.0,86888.0,0.20504196]
[1764557758472,0.00351837,86890.0,86889.0,0.23017873]
[1764557758676,0.00051837,86890.0,86889.0,0.23017873]
[1764557758828,0.00051837,86890.0,86888.0,0.20504196]
[1764557759027,0.00351837,86890.0,86888.0,0.43522151]
[1764557759226,0.00051837,86890.0,86888.0,0.43522151]
[1764557759422,0.00051837,86890.0,86889.0,0.09734812]
[1764557759677,0.00351837,86890.0,86889.0,0.09734812]
[1764557759889,0.00051837,86890.0,86889.0,0.09734812]
[1764557760248,0.00351837,86890.0,86889.0,0.09734812]
[1764557760458,0.00051837,86890.0,86889.0,0.09734812]
[1764557761057,0.00051837,86890.0,86889.0,0.11205057]
[1764557761771,0.00351837,86890.0,86889.0,0.10874014]
[1764557762183,0.00051837,86890.0,86889.0,0.42034812]
[1764557762385,0.00151837,86890.0,86889.0,0.42034812]
[1764557762616,0.00151837,86890.0,86889.0,0.45491154]
[1764557763371,0.00051837,86890.0,86889.0,0.46630356]
[1764557763783,0.00146572,86890.0,86889.0,0.46630356]
[1764557764180,0.00146572,86890.0,86889.0,0.46730356]
[1764557764762,0.00146572,86890.0,86889.0,0.46630356]
[1764557764941,0.00146572,86890.0,86889.0,0.46730356]
[1764557765484,0.00146572,86890.0,86889.0,0.45591154]
[1764557766113,0.00146572,86890.0,86889.0,0.33584685]
[1764557767056,0.00146572,86890.0,86889.0,0.33484685]
[1764557767494,0.00146572,86890.0,86889.0,0.65784685]
[1764557767886,0.00146572,86890.0,86889.0,0.42766812]
[1764557768091,0.00146572,86890.0,86878.0,0.08252707]
[1764557768092,0.01151277,86860.0,86856.0,0.08252707]
[1764557768290,0.01151238,86863.0,86849.0,0.03767]
[1764557768291,0.11032,86857.0,86849.0,0.03767]
[1764557768640,0.0115137,86853.0,86849.0,0.03767]
[1764557768844,0.23029563,86845.0,86843.0,0.03767]
[1764557769013,0.23030861,86840.0,86839.0,0.03458211]
[1764557769217,0.23031922,86836.0,86828.0,0.03767]
[1764557769392,0.01151728,86826.0,86823.0,0.03458932]
[1764557769616,0.01151728,86826.0,86823.0,0.00011843]
[1764557769617,0.2303484,86825.0,86823.0,0.00011843]
[1764557769918,0.01151728,86826.0,86823.0,0.00011843]
[1764557769919,0.04968,86824.0,86823.0,0.00011843]
[1764557770680,0.2099,86824.0,86823.0,0.00011843]
[1764557770878,0.22129203,86824.0,86823.0,0.00011843]
[1764557771285,0.22861203,86824.0,86823.0,0.00111843]
[1764557771487,0.22861203,86824.0,86823.0,0.00311843]
[1764557771648,0.22861203,86824.0,86823.0,0.00011843]
[1764557772070,0.23561203,86824.0,86823.0,0.00011843]
[1764557772447,0.007,86824.0,86823.0,0.00011843]
[1764557773376,0.006,86824.0,86823.0,0.00011843]
[1764557773897,0.007,86824.0,86823.0,0.00011843]
[1764557774095,0.001,86824.0,86823.0,0.00011843]
[1764557774394,0.23035008,86825.0,86823.0,0.00011843]
[1764557774558,0.005,86824.0,86823.0,0.00011843]
[1764557775153,0.01151728,86826.0,86823.0,0.00011843]
[1764557775407,0.23032404,86835.0,86825.0,0.09734812]
[1764557775614,0.00732,86827.0,86825.0,0.10886554]
[1764557775790,0.00732,86830.0,86827.0,0.01151715]
[1764557776179,0.00732,86830.0,86826.0,0.01151728]
[1764557776384,0.01151688,86829.0,86825.0,0.10886554]
[1764557776588,0.00732,86830.0,86826.0,0.01151728]
[1764557776794,0.00732,86830.0,86827.0,0.01151715]
[1764557777003,0.00732,86830.0,86827.0,0.24186024]
[1764557777414,0.005,86831.0,86827.0,0.24186024]
[1764557777615,0.00732,86829.0,86827.0,0.01151715]
[1764557778975,0.01151649,86832.0,86828.0,0.01151702]
[1764557779252,0.00732,86831.0,86829.0,0.01151688]
[1764557779938,0.00732,86831.0,86830.0,0.01151675]
[1764557780259,0.00732,86831.0,86829.0,0.01151688]
[1764557780455,0.01151543,86840.0,86830.0,0.01151675]
[1764557780754,0.01151569,86838.0,86834.0,0.01151622]
[1764557780955,0.01151569,86838.0,86833.0,0.23032717]
[1764557780956,0.01151596,86836.0,86832.0,0.04918649]
[1764557781133,0.01151596,86836.0,86832.0,0.01151649]
[1764557781338,0.01151582,86837.0,86833.0,0.01151635]
[1764557781521,0.00732,86837.0,86836.0,0.01151596]
[1764557781721,0.00732,86837.0,86836.0,0.1192098]
[1764557782325,0.00732,86837.0,86836.0,0.10769384]
[1764557782975,0.01151649,86832.0,86827.0,0.10769384]
[1764557783204,0.01151609,86835.0,86831.0,0.01151662]
[1764557783392,0.01151622,86834.0,86831.0,0.01151662]
[1764557784933,0.00732,86837.0,86828.0,0.24185746]
[1764557784934,0.00732,86837.0,86828.0,0.01151702]
[1764557785102,0.00732,86837.0,86833.0,0.23032689]
[1764557785483,0.001,86834.0,86833.0,0.24184324]
[1764557785885,0.001,86834.0,86833.0,0.31718324]
[1764557786087,0.001,86834.0,86833.0,0.01151635]
[1764557786283,0.01151662,86831.0,86828.0,0.01151702]
[1764557786472,0.02308601,86833.0,86830.0,0.09734812]
[1764557786891,0.23032983,86832.0,86830.0,0.09734812]
[1764557787084,0.01151635,86833.0,86830.0,0.09734812]
[1764557787457,0.02308601,86833.0,86830.0,0.10886487]
[1764557787815,0.29308248,86831.0,86830.0,0.09734812]
[1764557787987,0.01151635,86833.0,86830.0,0.09734812]
[1764557788186,0.01151635,86833.0,86830.0,0.10886487]
[1764557788395,0.03460223,86834.0,86830.0,0.10886487]
[1764557789537,0.24184352,86833.0,86830.0,0.09734812]
[1764557789742,0.01883569,86838.0,86834.0,0.01151622]
[1764557789980,0.01151582,86837.0,86832.0,0.24184383]
[1764557790124,0.002,86833.0,86831.0,0.01151662]
[1764557790325,0.02308601,86834.0,86831.0,0.01151662]
[1764557790623,0.002,86833.0,86831.0,0.24184688]
[1764557791029,0.01151609,86835.0,86832.0,0.01151649]
[1764557791230,0.24183239,86837.0,86832.0,0.01151649]
[1764557791435,0.24183239,86837.0,86833.0,0.01151635]
[1764557791634,0.01151582,86837.0,86833.0,0.01151635]
[1764557792134,0.01151582,86837.0,86834.0,0.01151622]
[1764557792339,0.01883569,86838.0,86835.0,0.01151609]
[1764557792604,0.00732,86838.0,86835.0,0.24183584]
[1764557793160,0.001,86837.0,86835.0,0.24183584]
[1764557793356,0.00732,86838.0,86836.0,0.23031705]
[1764557793602,0.00732,86838.0,86836.0,0.33801089]
[1764557793798,0.00932,86838.0,86836.0,0.33801089]
[1764557793947,0.00732,86838.0,86836.0,0.33801089]
[1764557794146,0.00732,86838.0,86837.0,0.03767]
[1764557795882,0.00932,86838.0,86837.0,0.03767]
[1764557796108,0.00732,86838.0,86837.0,0.03767]
[1764557796309,0.01151516,86842.0,86838.0,0.2418296]
[1764557796492,0.00732,86841.0,86838.0,0.2418296]
[1764557796700,0.23032455,86834.0,86826.0,0.03767]
[1764557796903,0.10994,86831.0,86827.0,0.10769384]
[1764557797109,0.04719,86831.0,86830.0,0.09734812]
[1764557797309,0.05451,86831.0,86830.0,0.09734812]
[1764557799516,0.01151543,86840.0,86837.0,0.01151582]
[1764557799727,0.04719,86841.0,86837.0,0.11920966]
[1764557799924,0.24914581,86840.0,86837.0,0.10769384]
[1764557800132,0.01883543,86840.0,86837.0,0.10769384]
[1764557800562,0.00732,86840.0,86837.0,0.11920966]
[1764557800763,0.00732,86840.0,86837.0,0.10769384]
[1764557801165,0.01883543,86840.0,86837.0,0.10769384]
[1764557801368,0.06275,86838.0,86837.0,0.10769384]
[1764557802385,0.06275,86838.0,86831.0,0.01151662]
[1764557802386,0.01151622,86834.0,86831.0,0.01151662]
[1764557802547,0.07769601,86836.0,86833.0,0.01151635]
[1764557802749,0.24183796,86835.0,86831.0,0.01151662]
[1764557802956,0.02308601,86834.0,86831.0,0.24184703]
[1764557803556,0.02408601,86834.0,86831.0,0.24184703]
[1764557803814,0.01151662,86831.0,86827.0,0.10769384]
[1764557804004,0.06275,86832.0,86830.0,0.09734812]
[1764557804239,0.001,86834.0,86830.0,0.10886487]
[1764557804370,0.001,86834.0,86833.0,0.23032717]
[1764557804586,0.001,86834.0,86833.0,0.26799717]
[1764557804996,0.00732,86837.0,86835.0,0.23032106]
[1764557805669,0.01883582,86837.0,86834.0,0.01151622]
[1764557805975,0.001,86834.0,86831.0,0.01151662]
[1764557806300,0.01883582,86837.0,86833.0,0.01151635]
[1764557806437,0.01883582,86837.0,86833.0,0.24184178]
[1764557806642,0.01983582,86837.0,86833.0,0.24184178]
[1764557806842,0.01883582,86837.0,86834.0,0.01151622]
[1764557807155,0.00732,86837.0,86835.0,0.23032187]
[1764557807340,0.00732,86837.0,86834.0,0.01151622]
[1764557807539,0.01151596,86836.0,86831.0,0.01151662]
[1764557807740,0.01151596,86836.0,86830.0,0.32768113]
[1764557807741,0.23032983,86832.0,86830.0,0.09734812]
[1764557807947,0.06096,86831.0,86830.0,0.09734812]
[1764557808170,0.23032983,86832.0,86830.0,0.09734812]
[1764557808363,0.01151635,86833.0,86830.0,0.09734812]
[1764557808579,0.2649313,86833.0,86830.0,0.09734812]
[1764557808726,0.24184529,86833.0,86830.0,0.09734812]
[1764557808930,0.00732,86836.0,86830.0,0.10886487]
[1764557809132,0.00732,86836.0,86833.0,0.24184205]
[1764557809333,0.00732,86836.0,86833.0,0.01151635]
[1764557809940,0.24183986,86835.0,86830.0,0.10886487]
[1764557810139,0.03460223,86834.0,86831.0,0.01151662]
[1764557810805,0.01151675,86830.0,86827.0,0.10769384]
[1764557810969,0.06096,86828.0,86827.0,0.10769384]
[1764557812203,0.15339,86828.0,86827.0,0.10769384]
[1764557813060,0.23035105,86824.0,86823.0,0.00011843]
[1764557813245,0.31002308,86824.0,86823.0,0.00011843]
[1764557813452,0.42697905,86824.0,86823.0,0.00011843]
[1764557814358,0.40245308,86824.0,86823.0,0.00011843]
[1764557814792,0.40445308,86824.0,86823.0,0.00011843]
[1764557814978,0.06096,86824.0,86823.0,0.00011843]
[1764557815144,0.06828,86824.0,86823.0,0.00011843]
[1764557815482,0.07028,86824.0,86823.0,0.00011843]
[1764557816234,0.16271,86824.0,86823.0,0.00011843]
[1764557817085,0.07028,86824.0,86823.0,0.00011843]
[1764557818091,0.07447755,86824.0,86821.0,0.00494683]
[1764557818242,0.00732,86823.0,86821.0,0.00494683]
[1764557818446,0.01151795,86821.0,86814.0,0.24189392]
[1764557818658,0.01883768,86823.0,86819.0,0.01151821]
[1764557818887,0.24398932,86824.0,86820.0,0.24187782]
[1764557819108,0.00732,86823.0,86820.0,0.24187782]
[1764557819604,0.24187417,86822.0,86819.0,0.01151821]
[1764557820009,0.06137781,86822.0,86819.0,0.01151821]
[1764557820255,0.002,86823.0,86821.0,0.23035901]
[1764557820509,0.06137781,86822.0,86816.0,0.10769384]
[1764557820737,0.23036962,86817.0,86816.0,0.10769384]
[1764557820949,0.29132962,86817.0,86816.0,0.10769384]
[1764557821127,0.24189507,86815.0,86811.0,0.0135523]
[1764557821310,0.06096,86812.0,86811.0,0.0135523]
[1764557821682,0.01151874,86815.0,86812.0,0.24190203]
[1764557822056,0.06096,86812.0,86811.0,0.00203303]
[1764557822397,0.15339,86812.0,86811.0,0.00203303]
[1764557822596,0.06096,86812.0,86811.0,0.00403303]
[1764557822814,0.15339,86812.0,86811.0,0.00403303]
[1764557823029,0.16071,86812.0,86811.0,0.00403303]
[1764557823191,0.17210203,86812.0,86811.0,0.00403303]
[1764557823843,0.16478203,86812.0,86811.0,0.00403303]
[1764557824017,0.16071,86812.0,86811.0,0.00203303]
[1764557824470,0.004,86812.0,86811.0,0.00203303]
[1764557824795,0.01132,86812.0,86811.0,0.00203303]
[1764557825212,0.00732,86812.0,86811.0,0.00203303]
[1764557825416,0.16071,86812.0,86811.0,0.00203303]
[1764557826120,0.07028,86812.0,86811.0,0.00203303]
[1764557827150,0.06828,86812.0,86811.0,0.00203303]
[1764557827468,0.07228,86812.0,86811.0,0.00203303]
[1764557828981,0.16471,86812.0,86811.0,0.00203303]
[1764557829770,0.16471,86812.0,86811.0,0.10972687]
[1764557830128,0.07228,86812.0,86811.0,0.10972687]
[1764557830332,0.01132,86812.0,86811.0,0.10972687]
[1764557831672,0.07228,86812.0,86811.0,0.10972687]
[1764557834997,0.01132,86812.0,86811.0,0.10972687]
[1764557835436,0.16471,86812.0,86811.0,0.10972687]
[1764557835564,0.30266289,86812.0,86811.0,0.10972687]
[1764557835830,0.07228,86812.0,86811.0,0.10972687]
[1764557837838,0.16978,86812.0,86811.0,0.10972687]
[1764557838653,0.19286601,86812.0,86811.0,0.00203303]
[1764557839914,0.20425804,86812.0,86811.0,0.00203303]
[1764557840415,0.19286601,86812.0,86811.0,0.00203303]
[1764557840565,0.20425804,86812.0,86811.0,0.00203303]
[1764557842892,0.16978,86812.0,86811.0,0.10972687]
[1764557843096,0.07228,86812.0,86811.0,0.10972687]
[1764557843940,0.16978,86812.0,86811.0,0.10972687]
[1764557845883,0.07228,86812.0,86811.0,0.10972687]
[1764557846285,0.16737,86812.0,86811.0,0.10972687]
[1764557846713,0.16005,86812.0,86811.0,0.10972687]
[1764557846858,0.16737,86812.0,86811.0,0.10972687]
[1764557847531,0.16737,86812.0,86811.0,0.00203303]
[1764557847738,0.17876203,86812.0,86811.0,0.00203303]
[1764557848485,0.004,86812.0,86811.0,0.51280054]
[1764557848702,0.004,86812.0,86811.0,0.47513054]
[1764557848896,0.004,86812.0,86811.0,0.43746054]
[1764557849519,0.004,86812.0,86811.0,0.10972687]
[1764557849723,0.06696,86812.0,86811.0,0.34011242]
[1764557849934,0.06296,86812.0,86811.0,0.34011242]
[1764557850134,0.01151808,86820.0,86817.0,0.01151848]
[1764557850337,0.2880791,86821.0,86816.0,0.01151861]
[1764557850605,0.05771795,86821.0,86816.0,0.01151861]
[1764557850856,0.10660808,86820.0,86816.0,0.01151861]
[1764557851853,0.23038024,86813.0,86811.0,0.00203303]
[1764557852074,0.20425,86812.0,86811.0,0.00203303]
[1764557852437,0.22733601,86812.0,86811.0,0.00203303]
[1764557852660,0.46911093,86812.0,86811.0,0.00203303]
[1764557852843,0.44602492,86812.0,86811.0,0.00203303]
[1764557853228,0.43463289,86812.0,86811.0,0.00203303]
[1764557854105,0.43663289,86812.0,86811.0,0.00203303]
[1764557854482,0.23038222,86813.0,86811.0,0.00203303]
[1764557854782,0.002,86812.0,86811.0,0.00203303]
[1764557855237,0.002,86812.0,86811.0,0.23241858]
[1764557855666,0.002,86812.0,86811.0,0.00203303]
[1764557856420,0.01151861,86816.0,86812.0,0.01151914]
[1764557856571,0.002,86813.0,86812.0,0.01151914]
[1764557856768,0.01151874,86815.0,86812.0,0.01151914]
[1764557858283,0.002,86813.0,86812.0,0.01151914]
[1764557858741,0.002,86813.0,86812.0,0.08685914]
[1764557859351,0.01151768,86823.0,86818.0,0.01151834]
[1764557859556,0.24187596,86822.0,86818.0,0.11921218]
[1764557860179,0.01151781,86822.0,86818.0,0.11921218]
[1764557860387,0.01151768,86823.0,86819.0,0.01151821]
[1764557860987,0.01351781,86822.0,86819.0,0.01151821]
[1764557861371,0.01151768,86823.0,86819.0,0.24188084]
[1764557861993,0.00011824,86824.0,86821.0,0.01151795]
[1764557862141,0.01151715,86827.0,86824.0,0.01151755]
[1764557862344,0.0462,86839.0,86835.0,0.24183584]
[1764557862541,0.05352,86839.0,86836.0,0.01151596]
[1764557862970,0.16012556,86839.0,86833.0,0.10769384]
[1764557863173,0.01151569,86838.0,86833.0,0.11921019]
[1764557863409,0.01151569,86838.0,86835.0,0.01151609]
[1764557863987,0.2452,86842.0,86835.0,0.01151609]
[1764557863988,0.2452,86842.0,86839.0,0.01151556]
[1764557864240,0.01151503,86843.0,86837.0,0.01151582]
[1764557864418,0.01151543,86840.0,86837.0,0.01151582]
[1764557864566,0.005,86838.0,86837.0,0.01151582]
[1764557865558,0.005,86838.0,86837.0,0.04918582]
[1764557865714,0.05771463,86846.0,86837.0,0.04918582]
[1764557865895,0.06928601,86846.0,86843.0,0.01151503]
[1764557866092,0.0462,86846.0,86843.0,0.01151503]
[1764557866497,0.0462,86846.0,86843.0,0.24181362]
[1764557867136,0.0462,86846.0,86845.0,0.23029535]
[1764557867306,0.0502,86846.0,86843.0,0.24181362]
[1764557867935,0.004,86846.0,86845.0,0.23029535]
[1764557868108,0.004,86846.0,86845.0,0.26796535]
[1764557868311,0.004,86846.0,86845.0,0.30563535]
[1764557868735,0.01151264,86861.0,86852.0,0.24178797]
[1764557868936,0.02308601,86860.0,86857.0,0.01151317]
[1764557869135,0.03459878,86860.0,86855.0,0.10886156]
[1764557869446,0.01151291,86859.0,86855.0,0.33912977]
[1764557869656,0.02308601,86858.0,86855.0,0.33912977]
[1764557870158,0.01151344,86855.0,86852.0,0.10769384]
[1764557870456,0.06459,86853.0,86852.0,0.10769384]
[1764557870762,0.06459,86853.0,86832.0,0.10769384]
[1764557870763,0.23031391,86838.0,86832.0,0.10769384]
[1764557871006,0.01151556,86839.0,86834.0,0.01151622]
[1764557871200,0.04764,86837.0,86834.0,0.01151622]
[1764557872351,0.05915582,86837.0,86832.0,0.10769384]
[1764557872552,0.01151609,86835.0,86832.0,0.10769384]
[1764557872754,0.02308601,86834.0,86832.0,0.10769384]
[1764557873154,0.23032717,86833.0,86832.0,0.10769384]
[1764557873486,0.2303484,86825.0,86822.0,0.14536384]
[1764557873920,0.3870484,86825.0,86823.0,0.10769384]
[1764557874181,0.23036962,86817.0,86816.0,0.10769384]
[1764557874380,0.29495962,86817.0,86816.0,0.1080888]